Cogmind - Beta 14 @@@ ROGUE MODE // 2025.01.14 @ 12:09:08 Player: Struisvogel Result: Self-destructed Performance ------------- Evolutions (1) 500 Regions Visited (3) 600 Robots Destroyed (36) 180 Value Destroyed (1093) 1093 Prototype IDs (1) 20 Alien Tech Used (0) 0 Bonus (11) 11 TOTAL SCORE: 2404 Bonus ------- High Alert Combat Kills 11 Cogmind --------- Core Integrity 202/400 Matter 235/300 Energy 90/100 System Corruption 5% Temperature Warning (397) Movement Core (400) Ox7 Location -9/Mines Parts ------- > --- POWER (1) -------- (None) > --- PROPULSION (2) --- (None) > --- UTILITY (4) ------ Large Storage Unit > --- WEAPON (2) ------- Gatling Laser > --- INVENTORY (15) --- Light Nuclear Core Micro Nuclear Core Light Treads Light Treads Light Treads Aluminum Leg Aluminum Leg Improved Aluminum Leg Heat Sink Medium Storage Unit Particle Charger ECM Suite Beam Cannon Grenade Launcher Grenade Launcher Peak State ------------ > --- POWER ------------ Ion Engine > --- PROPULSION ------- Light Treads Light Treads > --- UTILITY ---------- Improved Heat Sink Large Storage Unit Energy Filter Improved Propulsion Shielding > --- WEAPON ----------- Medium Laser Beam Cannon > --- INVENTORY -------- Light Nuclear Core Micro Nuclear Core Light Treads Light Treads Light Treads Aluminum Leg Aluminum Leg Improved Aluminum Leg Heat Sink Medium Storage Unit Particle Charger ECM Suite Light Assault Rifle Grenade Launcher Grenade Launcher [Rating: 18] Favorites ----------- Power Light Ion Engine Engine Light Ion Engine Power Core Light Nuclear Core Propulsion Light Treads Treads Light Treads Leg Aluminum Leg Utility ECM Suite Device ECM Suite Storage Large Storage Unit Processor Targeting Computer Protection Light Armor Plating Weapon Beam Cannon Energy Gun Medium Laser Energy Cannon Beam Cannon Ballistic Gun Light Assault Rifle Launcher Grenade Launcher Build | -11 -10 -9 -9 ------- Run | Yrd Mat Mat Min Slots Evolved 2 | . . 2 . Power . | . . . . Propulsion . | . . . . Utility 2 | . . 2 . Weapon . | . . . . Parts Attached 42 | 5 15 18 4 Power 8 | 1 4 2 1 Engine 7 | 1 3 2 1 Core 1 | . 1 . . Reactor . | . . . . Propulsion 8 | 2 3 3 . Treads 6 | 2 1 3 . Leg 2 | . 2 . . Wheel . | . . . . Hover . | . . . . Flight . | . . . . Utility 13 | 1 4 7 1 Device 6 | . 2 3 1 Storage 4 | 1 2 1 . Processor 1 | . . 1 . Hackware . | . . . . Protection 2 | . . 2 . Artifact . | . . . . Weapon 13 | 1 4 6 2 Energy Gun 4 | . 1 2 1 Energy Cannon 2 | . 1 1 . Ballistic Gun 4 | 1 2 1 . Ballistic Cannon . | . . . . Launcher 3 | . . 2 1 Special Weapon . | . . . . Impact Weapon . | . . . . Slashing Weapon . | . . . . Piercing Weapon . | . . . . Special Melee Weapon . | . . . . Unidentified Prototypes 1 | . . 1 . Parts Lost 12 | . 2 4 6 Power 2 | . . 1 1 Propulsion 3 | . 2 . 1 Utility 4 | . . 1 3 Weapon 3 | . . 2 1 Highest Loss Streak 6 | . 2 2 6 To Critical Strikes . | . . . . Average Slot Usage (%) 97 | . 96 99 96 Engine 11 | . 13 5 11 Core 1 | . . 5 . Treads 22 | . 25 13 20 Leg 2 | . . 7 . Device 14 | . 13 14 20 Storage 13 | . 14 11 11 Processor 2 | . . 10 . Protection 2 | . . 7 10 Energy Gun 2 | . 1 . 12 Energy Cannon 8 | . 11 3 2 Ballistic Gun 12 | . 14 10 . Launcher 2 | . . 6 7 Peak Build Rating 18 | 5 12 16 18 Average Rating 9 | 4 7 13 17 On Entrance 7 | . 5 12 14 Naked Turns . | . . . . Heaviest Build 36 | 10 31 35 36 Greatest Support 40 | 40 40 40 40 Greatest Overweight (x) 10 | 2 10 10 . Average Overweight (x) . | . . . . Largest Inventory Capacity 15 | 8 15 15 15 Average Capacity 12 | 7 11 15 15 Most Carried 15 | 7 15 15 15 Average Carried 11 | 4 11 13 14 Final Capacity 15 | 8 15 15 15 Final Carried 15 | 7 15 13 15 Class Distribution -------------------- 88% | Mutant 11% | Scavenger-Mutant Dominant Class ---------------- Mutant | -10/Materials Mutant | -9/Materials Mutant | -9/Mines Resources | -11 -10 -9 -9 ----------- Run | Yrd Mat Mat Min Matter Collected 1012 | 205 297 387 123 Remotely . | . . . . Salvage Created 1243 | . 706 436 101 Parts 72 | . 41 29 2 Haulers Intercepted 1 | . 1 . . Recyclers Shooed 3 | . . 3 . Parts Field Recycled . | . . . . Retrieved Matter . | . . . . Parts Self-Destructed . | . . . . Prevented . | . . . . Kills | -11 -10 -9 -9 ------- Run | Yrd Mat Mat Min Combat Hostiles Destroyed 32 | . 15 10 7 Guns 14 | . 7 3 4 Cannons 8 | . 7 1 . AOE 9 | . . 6 3 Classes Destroyed 10 | . 5 4 1 Worker 2 | . . 2 . Hauler 1 | . 1 . . Recycler 2 | . . 2 . Operator 1 | . 1 . . Watcher 3 | . 2 1 . Swarmer 3 | . 3 . . Grunt 20 | . 12 6 2 Duelist 2 | . . 2 . Sentry 2 | . . 2 . Assembled 5 | . . . 5 Best Kill Streak 6 | . 3 6 5 Combat Bots Only 5 | . 3 3 5 Max Kills in Single Turn 2 | . 1 2 2 Gunslinging . | . . . . Exploded 2 | . . 1 2 Melee . | . . . . Uniques/NPCs Destroyed . | . . . . Combat | -11 -10 -9 -9 -------- Run | Yrd Mat Mat Min Hostile Shots Fired 174 | . 83 54 37 Missed 45 | . 23 17 5 Damage Taken 1967 | . 747 609 611 Core 303 | . 105 88 110 Absorbed by Shields . | . . . . Redirected to Shielding 103 | . . . 103 Core Remaining (%) 79 | 100 58 . . Volleys Fired 109 | . 66 34 9 Largest 2 | . 2 2 2 Hottest 130 | . 80 83 130 Shots Fired 199 | . 116 66 17 Gun 120 | . 73 34 13 Cannon 48 | . 43 5 . Launcher 31 | . . 27 4 Special . | . . . . Kinetic 100 | . 66 34 . Thermal 61 | . 43 5 13 Explosive 31 | . . 27 4 Electromagnetic 7 | . 7 . . Robot Hit Streak 11 | . 10 11 4 Robot Miss Streak 4 | . 4 4 3 Penetration Max . | . . . . Secondary Targets . | . . . . Shots Hit Robots 132 | . 76 45 11 Core Hits 79 | . 30 31 18 Critical Kills 1 | . 1 . . Critical Parts Destroyed . | . . . . Critical Strikes 1 | . 1 . . Meltdown 1 | . 1 . . Melee Attacks . | . . . . Impact . | . . . . Slashing . | . . . . Piercing . | . . . . Sneak Attacks . | . . . . Combat Hostiles . | . . . . Follow-up Attacks . | . . . . Damage Inflicted 2639 | 3 997 1246 393 Guns 996 | . 484 310 202 Cannons 547 | . 511 36 . Explosions 1081 | . . 890 191 Melee . | . . . . Ramming 15 | 3 2 10 . Kinetic 736 | . 426 310 . Thermal 749 | . 511 36 202 Explosive 1081 | . . 890 191 Electromagnetic 58 | . 58 . . Impact . | . . . . Slashing . | . . . . Piercing . | . . . . Highest Corruption 5 | . 2 3 5 Average Corruption 2 | . 2 3 3 Corruption Purged . | . . . . Corruption Blocked . | . . . . Effects 6 | . 2 . 4 Message Errors 2 | . 1 . 1 Matter Fused 4 | . 1 . 3 Overload Shots . | . . . . Overflow Damage 9 | . . 9 . Projectiles . | . . . . Explosions 9 | . . 9 . Melee . | . . . . Knockbacks . | . . . . Impact . | . . . . Kinetic . | . . . . Secondary . | . . . . Self-Inflicted Damage 215 | . . 106 109 Shots 9 | . . 5 4 Rammed 5 | 1 2 2 . Targets Rammed 5 | 1 2 2 . Kicked . | . . . . Crushed . | . . . . Highest Temperature 397 | . 261 6 397 Average Temperature 91 | . 85 4 170 Received Heat Transfer 697 | . 390 201 106 Siege Activations . | . . . . Robots Corrupted . | . . . . Combat Hostiles . | . . . . Parts Fried . | . . . . Impact Corruptions . | . . . . Robots Melted 1 | . 1 . . Combat Hostiles 1 | . 1 . . Parts Melted 2 | . 2 . . Heat Transferred 1657 | . 1073 74 510 Parts Sabotaged . | . . . . Parts Stolen . | . . . . Parts Stripped . | . . . . Power Chain Reactions . | . . . . Alert | -11 -10 -9 -9 ------- Run | Yrd Mat Mat Min Peak Influence 447 | . 172 447 194 Initial 115 | . . 32 115 Average 114 | . 78 230 155 Maximum Alert Level 2 | . . 2 . Low Security (%) 84 | 100 100 31 100 Level 1 14 | . . 61 . Level 2 1 | . . 7 . Level 3 . | . . . . Level 4 . | . . . . Level 5 . | . . . . High Security . | . . . . Max Security . | . . . . Squads Dispatched 6 | . 4 1 1 Investigation 3 | . 2 . 1 Extermination . | . . . . Reinforcement 3 | . 2 1 . Assault . | . . . . Garrison . | . . . . Intercept . | . . . . Searches Triggered . | . . . . Construction Impeded 1 | . . 1 . Haulers Reinforced . | . . . . Active Scanning Responses . | . . . . Cargo Convoy Interrupts . | . . . . Stealth | -11 -10 -9 -9 --------- Run | Yrd Mat Mat Min Distress Signals 5 | . 1 4 . Communications Jammed . | . . . . Distress Signals . | . . . . Times Spotted 52 | . 22 13 17 Peak Tracking Total 10 | . 3 3 10 Tactical Retreats 2 | . 2 . . Traps | -11 -10 -9 -9 ------- Run | Yrd Mat Mat Min Traps Triggered 3 | . 3 . . Indirectly . | . . . . Trap Hack Attempts . | . . . . Triggered . | . . . . Disarmed . | . . . . Reprogrammed . | . . . . Reused . | . . . . Traps Extracted . | . . . . Installed . | . . . . Triggered . | . . . . Machines | -11 -10 -9 -9 ---------- Run | Yrd Mat Mat Min Machines Disabled 8 | . 2 6 . Max in Single Turn 2 | . 1 2 . Machines Repaired . | . . . . Machines Dismantled . | . . . . Machines Sabotaged . | . . . . Overloaded Fab Kills . | . . . . Hacking | -11 -10 -9 -9 --------- Run | Yrd Mat Mat Min Machines Accessed 2 | . . 1 1 Terminals . | . . . . Fabricators . | . . . . Repair Stations . | . . . . Recycling Units . | . . . . Scanalyzers 1 | . . 1 . Garrison Access . | . . . . Total Hacks 7 | . . 6 1 Successful 7 | . . 6 1 Failed . | . . . . Catastrophic . | . . . . Database Lockouts . | . . . . Manual . | . . . . Terminals . | . . . . Fabricators . | . . . . Repair Stations . | . . . . Recycling Units . | . . . . Scanalyzers 6 | . . 6 . Garrison Access . | . . . . Terminal Hacks 1 | . . . 1 Open Door 1 | . . . 1 Fabricator Hacks . | . . . . Repair Station Hacks . | . . . . Recycling Unit Hacks . | . . . . Scanalyzer 6 | . . 6 . Insert Component 3 | . . 3 . Analyze 3 | . . 3 . Garrison Access Hacks . | . . . . Unauthorized Hacks . | . . . . Terminals . | . . . . Fabricators . | . . . . Repair Stations . | . . . . Recycling Units . | . . . . Scanalyzers . | . . . . Garrison Access . | . . . . Data Cores Recovered . | . . . . Used . | . . . . Hacking Detections 1 | . . 1 . Full Trace Events . | . . . . Feedback Events . | . . . . Feedback Blocked . | . . . . Robot Schematics Acquired . | . . . . Robots Built . | . . . . Authchips . | . . . . Time . | . . . . Total Robot Build Rating . | . . . . Part Schematics Acquired 3 | . . 3 . Parts Built . | . . . . Authchips . | . . . . Time . | . . . . Total Part Build Rating . | . . . . Parts Repaired . | . . . . Time . | . . . . Parts Recycled . | . . . . Recycled Matter . | . . . . Retrieved Matter . | . . . . Retrieved Components . | . . . . Parts Scanalyzed 3 | . . 3 . Part Schematics Acquired 3 | . . 3 . Parts Damaged . | . . . . Bothacking | -11 -10 -9 -9 ------------ Run | Yrd Mat Mat Min Used RIF Installer . | . . . . Robots Hacked . | . . . . Non-combat . | . . . . Combat . | . . . . Robot Hacks Applied . | . . . . Relay Couplers Released . | . . . . Fabnet Peak Effective % . | . . . . Robots Rewired . | . . . . Allies Hacked . | . . . . Hacks Repelled . | . . . . Allies | -11 -10 -9 -9 -------- Run | Yrd Mat Mat Min Total Allies . | . . . . Largest Group . | . . . . Highest-Rated Group . | . . . . Highest-Rated Ally . | . . . . Total Orders . | . . . . Ally Attacks . | . . . . Total Damage . | . . . . Kills . | . . . . Allies Corrupted . | . . . . Allies Melted . | . . . . Intel | -11 -10 -9 -9 ------- Run | Yrd Mat Mat Min Robot Analysis Total . | . . . . Derelict Logs Recovered . | . . . . Drone Launches . | . . . . Drone Recoveries . | . . . . Exploration | -11 -10 -9 -9 ------------- Run | Yrd Mat Mat Min Turns Passed 2205 | 120 1415 505 165 Spaces Moved 1077 | 68 721 208 80 Core 24 | 13 10 1 . Treads 958 | 55 689 134 80 Legs 95 | . 22 73 . Wheels . | . . . . Hover . | . . . . Flight . | . . . . Fastest Speed 50 | 50 160 160 160 Average Speed 166 | 153 166 172 160 Slowest Speed 550 | 160 550 550 160 Overloaded Moves . | . . . . Propulsion Burnouts . | . . . . Robots Hopped . | . . . . Cave-ins Triggered . | . . . . Exploration Rate (%) 35 | 5 97 21 17 Regions Visited 3 Branch Regions 1 Pre-discovered Areas . | . . . . Known Exits Taken . | . . . . Unknown Exits Taken 3 | 1 1 1 . Scrap Searched . | . . . . Spaces Dug . | . . . . Terrain Destroyed 166 | . . 125 41 Melee . | . . . . Projectile . | . . . . AOE 166 | . . 125 41 Terrain Rammed . | . . . . Walls Destroyed . | . . . . Machines Disabled . | . . . . Actions | -11 -10 -9 -9 --------- Run | Yrd Mat Mat Min Total 1301 | 81 831 291 98 Wait 12 | . . 12 . Move 1074 | 67 720 207 80 Hop . | . . . . Pick Up 34 | 8 14 9 3 Fast Attach 9 | 4 4 1 . Attach 13 | 1 2 10 . Detach 1 | . . 1 . Swap 20 | . 9 7 4 Drop 24 | . 14 8 2 Fire 109 | . 66 34 9 Melee . | . . . . Ram . | . . . . Kick . | . . . . Crush 5 | 1 2 2 . Escape Stasis . | . . . . Rewire . | . . . . Trap . | . . . . Miscellaneous . | . . . . Route ------- -11/Scrapyard -10/Materials (discovered 4 exits: *Mat x3 / [*Min]) -9/Materials -9/Mines History --------- Turn | Location | Event 68 | -11/Scrapyard | Discovered new exit (range 15) 121 | -11/Scrapyard | Entered Materials 300 | -10/Materials | Build established: Mutant 529 | -10/Materials | Discovered new exit (range 15) 932 | -10/Materials | Discovered new exit (range 8) 1126 | -10/Materials | Discovered new exit (range 16) 1263 | -10/Materials | Discovered new exit (range 14) 1536 | -10/Materials | Entered another Materials area 1536 | -9/Materials | Evolved 2 slots: Utility x2 2003 | -9/Materials | Discovered new exit (range 7) 2041 | -9/Materials | Entered Mines 2049 | -9/Mines | Met a Derelict shopkeep closing up shop 2172 | -9/Mines | Assembled infested the area 2206 | -9/Mines | Self-destructed Last Messages --------------- 02187_ System corrupted by crushing effect (+2). 02189_ as-51275 destroyed. 02191_ as-61663 destroyed. 02191_ as-61503 destroyed. 02192_ Acquired 11 matter. 02195_ The unstable cave ceiling collapses. 02197_ U-05 Engineer builds a Wall. 02197_ as-89416 destroyed. 02197_ as-52748 destroyed. 02198_ Acquired 15 matter. 02198_ Imp. Propulsion Shielding destroyed. 02199_ System corrupted: Matter fused (-9). 02199_ Lgt. Treads severed. 02199_ Lgt. Treads destroyed. 02201_ U-05 Engineer lays Concrete. 02202_ Lgt. Ion Engine destroyed. 02202_ Energy Filter destroyed. 02202_ U-05 Engineer builds a Wall. 02203_ The unstable cave ceiling collapses. 02204_ Med. Laser destroyed. Map ----- +----------------------------------------------------+ | ????#%#????? #?????????????????????????????? | | ???## ##???? #?????????????????????????????? | | ???## ##???? #?????????????????????????????? | | ##?## ##??? ##????????????????????????????? | | #### ###?? ?????????????????????????????? | | ! # ##? #?????????????????????????????? | | #? #?????????????????????????????? | | # # #? #?????????????????????????????? | | #### # ## #?????????????????????????????? | | #??### == ##????????????????????????????? | | #???## [ #????????????????????????????? | | ##???# * #????????????????????????????? | | ?????# *= ##????????????????????????????? | | ?????## #?????????????????????????????? | | ??????## #?????????????????????????????? | | ???????# ##????????????????????????????? | | ??????## ##???????????????????????????? | | ?????## ##??????????????????????????? | | ????## ##?????????????????????????? | | ?#### #?????????????????????????? | | # #####?????????????????????????? | | # ####?????????????????????????????? | | ## #?????????????#######????????????? | | ### #####????????## a #????????????? | | ###?# ###########aa ### #?????????? | | ##????# t u @aa a % #???????? | | ?# """ ########aa # ###?????????? | | ?# ### """ ## #?????# #a# #???????????? | | ?#????# """ ## #?????##?##?###???????????? | | ??????# ## #?????????????????????????? | | ??????######### #?????????????????????????? | | ???????????????###?????????????????????????? | | ???????????????????????????????????????????? | | ???????????????????????????????????????????? | | ???????????????????????????????????????????? | | ???????????????????????????????????????????? | | ???????????????????????????????????????????? | | ???????????????????????????????????????????? | | ???????????????????????????????????????????? | | ???????????????????????????????????????????? | | ???????????????????????????????????????????? | | ???????????????????????????????????????????? | | ???????????????????????????????????????????? | | ???????????????????????????????????????????? | | | | | | | | | | | | | +----------------------------------------------------+ Best States ------------- Heat Dissipation 42 Energy Generation 14 Energy Capacity 250 Matter Stores 300 Matter Capacity 300 Sight Range 16 Terrain Scan Density 10 ECM Strength 1 Armor Coverage 150 Propulsion Shielding 66 Evasion (%) 40 Targeting Accuracy 5 Recoil Reduction 2 Energy Filtering 30 Item Schematics ----------------- Aluminum Leg | -9/Materials | Scanalyzed Grenade Launcher | -9/Materials | Scanalyzed Lgt. Ion Engine | -9/Materials | Scanalyzed Robot Schematics ------------------ None Fabricated ------------ Nothing Alien Tech Used ----------------- None Achievements -------------- None Challenges ------------ None Game ------ Seed BeamWeaponReconstructor Manual? 0 Play Time 00:20:25 Cumulative 5.8 hours Start 2025.01.14 @ 11:44:17 End 2025.01.14 @ 12:09:08 Sessions 1 Manual Loads 0 Difficulty Rogue Special Mode None Game No. 16 Rogue 16 Adventurer 0 Explorer 0 Win Type - Total 0 Types 0/0/0/0/0/0/0/0/0 Lore% 4 Gallery% 12 Achievement% 14 Wizard Run 0 Options --------- Layout 1 ASCII 0 Keyboard 0 Movement Arrows Keybinds 0 Fullscreen 1 Font 24/Smallcaps Map View 50x35 Zoom Use 0% Tactical HUD 1 Map Filters NONE Filters NONE Steam 1 RUN: cae98034-08c3-419d-82ed-0054fb80bb1d